Cogmind - Beta 16 @@@ ROGUE MODE // 2025.10.24 @ 18:09:08 Player: ChromeKnight Result: Destroyed by J8-ULY(z) with Makeshift Spear Performance ------------- Evolutions (1) 500 Regions Visited (5) 1000 Robots Destroyed (53) 265 Value Destroyed (1186) 1186 Prototype IDs (4) 80 Alien Tech Used (0) 0 Bonus (300) 300 TOTAL SCORE: 3331 Bonus ------- Met Imprinter 300 Cogmind --------- Core Integrity 0/400 Matter 33/300 Energy 100/100 System Corruption 1% Temperature Cool (0) Movement Core (50) Location -7/Zion Parts ------- > --- POWER (1) -------- (None) > --- PROPULSION (3) --- (None) > --- UTILITY (3) ------ (None) > --- WEAPON (2) ------- (None) > --- INVENTORY (5) ---- Makeshift Leg Phase Shifter Makeshift Light Armor Plating Hacking Suite Phasing AFG Peak State ------------ > --- POWER ------------ Heavy Ion Engine > --- PROPULSION ------- Makeshift Leg Makeshift Leg Makeshift Leg > --- UTILITY ---------- Large Storage Unit Makeshift Light Armor Plating Makeshift Light Armor Plating > --- WEAPON ----------- Precision Grenade Launcher RU-N14's Throwing Claymores > --- INVENTORY -------- Machine Analyzer Armor Integrity Analyzer Phase Shifter Makeshift Light Armor Plating Hacking Suite Hacking Suite Phasing AFG Beam Rifle Heavy Assault Rifle RU-N14's Throwing Claymores Makeshift Hammer Makeshift Axe Makeshift Spear [Rating: 41] Favorites ----------- Power Heavy Ion Engine Engine Heavy Ion Engine Propulsion Light Treads Treads Light Treads Leg Makeshift Leg Utility Large Storage Unit Device Phasing AFG Storage Large Storage Unit Processor Targeting Computer Protection Makeshift Light Armor Plating Weapon Beam Rifle Energy Gun Beam Rifle Ballistic Gun Heavy Assault Rifle Launcher Precision Grenade Launcher Special Weapon RU-N14's Throwing Claymores Impact Weapon Makeshift Hammer Slashing Weapon Makeshift Axe Build | -11 -10 -10 -9 -9 -7 ------- Run | Yrd Mat Min Mat Min Zio Slots Evolved 2 | . . . 2 . . Power . | . . . . . . Propulsion 1 | . . . 1 . . Utility 1 | . . . 1 . . Weapon . | . . . . . . Parts Attached 36 | 6 2 2 10 . 16 Power 4 | 1 . . 3 . . Engine 4 | 1 . . 3 . . Core . | . . . . . . Reactor . | . . . . . . Propulsion 10 | 2 . . 3 . 5 Treads 5 | 2 . . 3 . . Leg 5 | . . . . . 5 Wheel . | . . . . . . Hover . | . . . . . . Flight . | . . . . . . Utility 8 | 1 2 . 2 . 3 Device 1 | . . . . . 1 Storage 2 | 1 1 . . . . Processor 1 | . 1 . . . . Hackware . | . . . . . . Protection 4 | . . . 2 . 2 Artifact . | . . . . . . Weapon 14 | 2 . 2 2 . 8 Energy Gun 3 | . . 2 1 . . Energy Cannon . | . . . . . . Ballistic Gun 4 | 2 . . 1 . 1 Ballistic Cannon . | . . . . . . Launcher 1 | . . . . . 1 Special Weapon 4 | . . . . . 4 Impact Weapon 1 | . . . . . 1 Slashing Weapon 1 | . . . . . 1 Piercing Weapon . | . . . . . . Special Melee Weapon . | . . . . . . Unidentified Prototypes 4 | . . . 1 . 3 Parts Lost 12 | . . . 2 . 10 Power 2 | . . . 1 . 1 Propulsion 6 | . . . . . 6 Utility 3 | . . . 1 . 2 Weapon 1 | . . . . . 1 Highest Loss Streak 6 | . . . 1 . 6 To Critical Strikes . | . . . . . . Average Backups 13 | . 8 14 14 12 13 Power . | . . . . . . Propulsion . | . . . 1 1 . Utility 5 | . 1 3 5 6 6 Weapon 6 | . 5 9 7 4 6 Tool/Special . | . . . . . . Unused Backups 22 | . . 1 4 . 17 Power . | . . . . . . Propulsion 3 | . . . . . 3 Utility 7 | . . . . . 7 Weapon 11 | . . 1 4 . 6 Tool/Special 1 | . . . . . 1 Average Slot Usage (%) 95 | . 94 100 86 100 98 Engine 11 | . 14 14 10 11 10 Treads 29 | . 28 28 27 33 29 Leg 1 | . . . . . 2 Storage 11 | . 15 14 11 11 11 Processor 3 | . 7 14 5 . . Protection 14 | . . . 9 22 21 Energy Gun 8 | . . 8 17 11 7 Ballistic Gun 8 | . 28 19 4 11 3 Launcher 1 | . . . . . 3 Special Weapon 1 | . . . . . 3 Impact Weapon 1 | . . . . . 3 Peak Build Rating 41 | 6 8 10 16 16 41 Average Rating 19 | 5 7 8 12 16 27 On Entrance 9 | . 6 8 10 16 16 Avg Prop Armor Cover (%) 8 | . . . . . 8 Naked Turns 1 | . . . . . 1 Heaviest Build 57 | 11 31 26 38 38 57 Greatest Support 60 | 40 40 40 60 60 60 Greatest Overweight (x) 13 | . . . . . 13 Average Overweight (x) . | . . . . . . Largest Inventory Capacity 15 | 8 15 15 15 15 15 Average Capacity 14 | 7 14 15 15 15 14 Most Carried 15 | . 14 15 15 12 15 Average Carried 13 | . 8 14 14 12 13 Final Capacity 15 | 8 15 15 15 15 5 Final Carried 15 | . 14 15 12 12 5 Class Distribution -------------------- 48% | Mutant 47% | Scavenger-Mutant 4% | Derelict-Mutant Dominant Class ---------------- Mutant | -10/Materials Mutant | -10/Mines Mutant | -9/Materials Scavenger-Mutant | -9/Mines Scavenger-Mutant | -7/Zion Resources | -11 -10 -10 -9 -9 -7 ----------- Run | Yrd Mat Min Mat Min Zio Matter Collected 825 | 246 188 54 127 30 180 Remotely . | . . . . . . Salvage Created 1313 | . 381 . 599 132 201 Parts 100 | . 32 . 35 6 27 Haulers Intercepted 1 | . . . 1 . . Recyclers Shooed . | . . . . . . Parts Field Recycled . | . . . . . . Retrieved Matter . | . . . . . . Parts Self-Destructed . | . . . . . . Prevented . | . . . . . . Parts Restored . | . . . . . . Kills | -11 -10 -10 -9 -9 -7 ------- Run | Yrd Mat Min Mat Min Zio Combat Hostiles Destroyed 24 | . 9 . 8 3 4 Guns 20 | . 9 . 8 3 . Cannons 1 | . . . . . 1 AOE 3 | . . . . . 3 Classes Destroyed 13 | . 5 . 5 . 3 Worker 2 | . . . 2 . . Hauler 1 | . . . 1 . . Recycler 1 | . . . 1 . . Mechanic 1 | . 1 . . . . Operator 4 | . 2 . 2 . . Watcher 2 | . 1 . 1 . . Swarmer 3 | . 3 . . . . Grunt 15 | . 6 . 6 3 . Brawler 1 | . . . 1 . . Sentry 1 | . . . 1 . . Zionite 18 | . . . . . 18 Tinkerer 3 | . . . . . 3 Mutant 4 | . . . . . 4 Best Kill Streak 5 | . 4 . 5 3 4 Combat Bots Only 4 | . 4 . 2 3 4 Max Kills in Single Turn 2 | . 1 . 1 1 2 Gunslinging . | . . . . . . Exploded 2 | . . . . . 2 Melee . | . . . . . . Uniques/NPCs Destroyed . | . . . . . . Combat | -11 -10 -10 -9 -9 -7 -------- Run | Yrd Mat Min Mat Min Zio Hostile Shots Fired 239 | . 43 . 40 8 148 Missed 85 | . 12 . 9 2 62 Hits 154 | . 31 . 31 6 86 Melee 19 | . . . . . 19 Projectile 135 | . 31 . 31 6 67 Critical Strikes 7 | . 1 . 1 . 5 Part Disruptions 2 | . . . . . 2 Damage Taken 2752 | . 382 . 401 65 1904 Core 421 | . 20 . 97 . 304 Absorbed by Shields . | . . . . . . Core Remaining (%) 96 | 100 . 92 . . . Volleys Fired 143 | . 47 . 57 7 32 Largest 2 | . 2 . 2 2 1 Hottest 80 | . 40 . 80 79 36 Shots Fired 254 | . 94 . 114 14 32 Gun 222 | . 94 . 114 14 . Cannon . | . . . . . . Launcher 24 | . . . . . 24 Special 8 | . . . . . 8 Kinetic 113 | . 94 . 12 7 . Thermal 109 | . . . 102 7 . Explosive 32 | . . . . . 32 Electromagnetic . | . . . . . . Robot Hit Streak 14 | . 13 . 14 6 14 Robot Miss Streak 4 | . 3 . 4 2 1 Penetration Max . | . . . . . . Secondary Targets 2 | . 1 . 1 . . Max Gunslinging Chain 1 | . 1 . 1 . . Shots Hit Robots 186 | . 67 . 78 10 31 Core Hits 93 | . 25 . 32 4 32 Critical Kills . | . . . . . . Critical Parts Destroyed 1 | . 1 . . . . Critical Strikes 5 | . 1 . . 2 2 Burn 2 | . . . . 2 . Destroy 1 | . 1 . . . . Sever 2 | . . . . . 2 Melee Attacks 103 | . . . . . 103 Impact 83 | . . . . . 83 Slashing 20 | . . . . . 20 Piercing . | . . . . . . Sneak Attacks 3 | . . . . . 3 Combat Hostiles . | . . . . . . Follow-up Attacks . | . . . . . . Damage Inflicted 4765 | . 738 . 893 160 2974 Guns 1791 | . 738 . 893 160 . Cannons . | . . . . . . Explosions 2113 | . . . . . 2113 Melee 668 | . . . . . 668 Ramming 21 | . . . . . 21 Kinetic 881 | . 738 . 58 85 . Thermal 910 | . . . 835 75 . Explosive 2113 | . . . . . 2113 Electromagnetic . | . . . . . . Impact . | . . . . . . Slashing 840 | . . . . . 840 Piercing . | . . . . . . Highest Corruption 1 | . . . . . 1 Average Corruption 1 | . . . . . 1 Corruption Purged . | . . . . . . Corruption Blocked . | . . . . . . Effects 13 | . . . . . 13 Message Errors 3 | . . . . . 3 Matter Fused 2 | . . . . . 2 Heat Flow Errors 2 | . . . . . 2 Energy Discharges 3 | . . . . . 3 Data Loss (minor) 2 | . . . . . 2 Data Loss (major) 1 | . . . . . 1 Overload Shots . | . . . . . . Overflow Damage 184 | . . . . . 184 Projectiles . | . . . . . . Explosions 124 | . . . . . 124 Melee 60 | . . . . . 60 Knockbacks . | . . . . . . Impact . | . . . . . . Kinetic . | . . . . . . Secondary . | . . . . . . Self-Inflicted Damage 318 | . . . . . 318 Shots 11 | . . . . . 11 Rammed 1 | . . . . . 1 Targets Rammed 8 | . . . . . 8 Kicked 7 | . . . . . 7 Crushed . | . . . . . . Highest Temperature 203 | . 27 . 203 183 158 Average Temperature 45 | . 9 . 54 93 27 Received Heat Transfer 742 | . 213 . 186 36 307 Siege Activations . | . . . . . . Martial Activations . | . . . . . . Shielding Activations . | . . . . . . Robots Disrupted . | . . . . . . Combat Hostiles . | . . . . . . Robots Corrupted . | . . . . . . Combat Hostiles . | . . . . . . Parts Fried . | . . . . . . Impact Corruptions . | . . . . . . Robots Melted . | . . . . . . Combat Hostiles . | . . . . . . Parts Melted 3 | . . . 3 . . Heat Transferred 2243 | . . . 1910 333 . Parts Sabotaged . | . . . . . . Parts Stolen . | . . . . . . Parts Stripped . | . . . . . . Power Chain Reactions . | . . . . . . Alert | -11 -10 -10 -9 -9 -7 ------- Run | Yrd Mat Min Mat Min Zio Maximum Alert Level . | . . . . . . Low Security (%) 100 | 100 100 100 100 100 . Level 1 . | . . . . . . Level 2 . | . . . . . . Level 3 . | . . . . . . Level 4 . | . . . . . . Level 5 . | . . . . . . High Security . | . . . . . . Max Security . | . . . . . . Peak Influence 115 | . 115 21 109 60 . Initial 16 | . . 16 . . . Average 21 | . 43 . 24 25 . Influence Increases 588 | . 272 5 241 70 . Destroy 0b10 Robot/C 400 | . 180 . 160 60 . Destroy 0b10 Robot/NC 55 | . 20 . 35 . . Destroy Leader 96 | . 42 . 44 10 . Successful Hack 5 | . . 5 . . . Destroy Structure 2 | . . . 2 . . Lose Combat Pursuer 30 | . 30 . . . . Influence Decreases 588 | . 229 48 241 40 30 Entered New Map 57 | . . 27 . . 30 Time Decay 521 | . 229 21 231 40 . Lost Part 10 | . . . 10 . . Squads Dispatched 4 | . 2 . 2 . . Investigation . | . . . . . . Extermination . | . . . . . . Reinforcement 4 | . 2 . 2 . . Assault . | . . . . . . Garrison . | . . . . . . Intercept . | . . . . . . Searches Triggered . | . . . . . . Construction Impeded . | . . . . . . Haulers Reinforced . | . . . . . . Active Scanning Responses . | . . . . . . Cargo Convoy Interrupts . | . . . . . . Stealth | -11 -10 -10 -9 -9 -7 --------- Run | Yrd Mat Min Mat Min Zio Distress Signals 7 | . 4 1 2 . . Communications Jammed . | . . . . . . Distress Signals . | . . . . . . Times Spotted 69 | . 21 . 15 3 30 Peak Tracking Total 8 | . 4 . 6 3 8 Tactical Retreats 5 | . 2 . . . 3 Traps | -11 -10 -10 -9 -9 -7 ------- Run | Yrd Mat Min Mat Min Zio Traps Triggered . | . . . . . . Indirectly . | . . . . . . Trap Hack Attempts . | . . . . . . Triggered . | . . . . . . Disarmed . | . . . . . . Reprogrammed . | . . . . . . Reused . | . . . . . . Traps Extracted . | . . . . . . Installed . | . . . . . . Triggered . | . . . . . . Machines | -11 -10 -10 -9 -9 -7 ---------- Run | Yrd Mat Min Mat Min Zio Machines Disabled 2 | . . . . . 2 Max in Single Turn 1 | . . . . . 1 Machines Repaired . | . . . . . . Machines Dismantled . | . . . . . . Machines Sabotaged . | . . . . . . Overloaded Fab Kills . | . . . . . . Hacking | -11 -10 -10 -9 -9 -7 --------- Run | Yrd Mat Min Mat Min Zio Machines Accessed 2 | . 1 1 . . . Terminals 2 | . 1 1 . . . Fabricators . | . . . . . . Repair Stations . | . . . . . . Recycling Units . | . . . . . . Scanalyzers . | . . . . . . Garrison Access . | . . . . . . Total Hacks 3 | . 1 2 . . . Successful 1 | . . 1 . . . Failed 2 | . 1 1 . . . Catastrophic . | . . . . . . Database Lockouts . | . . . . . . Manual 1 | . . 1 . . . Terminals 3 | . 1 2 . . . Fabricators . | . . . . . . Repair Stations . | . . . . . . Recycling Units . | . . . . . . Scanalyzers . | . . . . . . Garrison Access . | . . . . . . Terminal Hacks 1 | . . 1 . . . Zone Layout 1 | . . 1 . . . Fabricator Hacks . | . . . . . . Repair Station Hacks . | . . . . . . Recycling Unit Hacks . | . . . . . . Scanalyzer . | . . . . . . Garrison Access Hacks . | . . . . . . Unauthorized Hacks . | . . . . . . Terminals . | . . . . . . Fabricators . | . . . . . . Repair Stations . | . . . . . . Recycling Units . | . . . . . . Scanalyzers . | . . . . . . Garrison Access . | . . . . . . Data Cores Recovered . | . . . . . . Used . | . . . . . . Hacking Detections 2 | . 1 1 . . . Full Trace Events . | . . . . . . Feedback Events . | . . . . . . Feedback Blocked . | . . . . . . Robot Schematics Acquired . | . . . . . . Robots Built . | . . . . . . Authchips . | . . . . . . Time . | . . . . . . Total Robot Build Rating . | . . . . . . Part Schematics Acquired . | . . . . . . Parts Built . | . . . . . . Authchips . | . . . . . . Time . | . . . . . . Total Part Build Rating . | . . . . . . Part Studies Acquired . | . . . . . . Parts Repaired . | . . . . . . Time . | . . . . . . Parts Recycled . | . . . . . . Recycled Matter . | . . . . . . Retrieved Matter . | . . . . . . Retrieved Components . | . . . . . . Parts Scanalyzed . | . . . . . . Part Schematics Acquired . | . . . . . . Parts Damaged . | . . . . . . Bothacking | -11 -10 -10 -9 -9 -7 ------------ Run | Yrd Mat Min Mat Min Zio Used RIF Installer . | . . . . . . Robots Hacked . | . . . . . . Non-combat . | . . . . . . Combat . | . . . . . . Robot Hacks Applied . | . . . . . . Relay Couplers Released . | . . . . . . Fabnet Peak Effective % . | . . . . . . Robots Rewired . | . . . . . . Allies Hacked . | . . . . . . Hacks Repelled . | . . . . . . Allies | -11 -10 -10 -9 -9 -7 -------- Run | Yrd Mat Min Mat Min Zio Total Allies . | . . . . . . Largest Group . | . . . . . . Highest-Rated Group . | . . . . . . Highest-Rated Ally . | . . . . . . Total Orders . | . . . . . . Ally Attacks . | . . . . . . Total Damage . | . . . . . . Kills . | . . . . . . Allies Corrupted . | . . . . . . Allies Melted . | . . . . . . Intel | -11 -10 -10 -9 -9 -7 ------- Run | Yrd Mat Min Mat Min Zio Active Infowar (turns) . | . . . . . . Robot Analysis Total . | . . . . . . Derelict Logs Recovered 2 | . . 1 . . 1 Drone Launches . | . . . . . . Drone Recoveries . | . . . . . . Exploration | -11 -10 -10 -9 -9 -7 ------------- Run | Yrd Mat Min Mat Min Zio Turns Passed 6272 | 90 655 804 1134 141 3448 Spaces Moved 2510 | 53 263 173 376 75 1570 Core 6 | 2 . . . . 4 Treads 2386 | 51 263 173 376 75 1448 Legs 118 | . . . . . 118 Wheels . | . . . . . . Hover . | . . . . . . Flight . | . . . . . . Fastest Speed 50 | 50 160 160 160 160 50 Average Speed 161 | 155 160 160 160 160 162 Slowest Speed 700 | 160 160 160 160 160 700 Overloaded Moves . | . . . . . . Propulsion Burnouts . | . . . . . . Robots Hopped . | . . . . . . Potential Cave-ins . | . . . . . . Cave-ins Triggered . | . . . . . . Exploration Rate (%) 32 | 5 38 25 17 25 87 Regions Visited 5 Branch Regions 3 Pre-discovered Areas . | . . . . . . Known Exits Taken 1 | . . . 1 . . Unknown Exits Taken 4 | 1 1 1 . 1 . Scrap Searched 2 | . . . . . 2 Spaces Dug . | . . . . . . Terrain Destroyed 31 | . . . . . 31 Melee . | . . . . . . Projectile . | . . . . . . AOE 31 | . . . . . 31 Terrain Rammed . | . . . . . . Walls Destroyed . | . . . . . . Machines Disabled . | . . . . . . Actions | -11 -10 -10 -9 -9 -7 --------- Run | Yrd Mat Min Mat Min Zio Total 4377 | 58 412 703 800 82 2322 Wait 1510 | . 87 522 343 1 557 Move 2505 | 52 262 172 375 74 1570 Hop . | . . . . . . Pick Up 34 | . 13 4 3 . 14 Fast Attach 25 | 6 2 . 7 . 10 Attach 5 | . . 2 . . 3 Detach 2 | . 1 . . . 1 Swap 10 | . . . 3 . 7 Drop 32 | . . 3 12 . 17 Fire 143 | . 47 . 57 7 32 Melee 103 | . . . . . 103 Ram . | . . . . . . Kick 7 | . . . . . 7 Crush 1 | . . . . . 1 Escape Stasis . | . . . . . . Rewire . | . . . . . . Trap . | . . . . . . Miscellaneous . | . . . . . . Route ------- -11/Scrapyard -10/Materials -10/Mines (discovered 2 exits: [*Mat x2]) -9/Materials -9/Mines -7/Zion History --------- Turn | Location | Event 48 | -11/Scrapyard | Discovered new exit (range 15) 91 | -11/Scrapyard | Entered Materials 305 | -10/Materials | Build established: Mutant 725 | -10/Materials | Discovered new exit (range 14) 746 | -10/Materials | Entered Mines 747 | -10/Mines | Assembled infested the area 751 | -10/Mines | Discovered new exit (range 20) 752 | -10/Mines | Assisted by a Guerilla fighting off Assembled 1304 | -10/Mines | Learned 2 Materials zone layouts 1429 | -10/Mines | Received a Rocket Launcher from a helpful Derelict 1438 | -10/Mines | Discovered new exit (range 11) 1550 | -10/Mines | Entered Materials 1550 | -9/Materials | Evolved 2 slots: Propulsion x1, Utility x1 1551 | -9/Materials | Identified exit to Mines 2415 | -9/Materials | Build established: Scavenger-Mutant 2684 | -9/Materials | Entered Mines 2817 | -9/Mines | A Derelict revealed a hidden shortcut to a safe place 2825 | -9/Mines | Entered Zion 3096 | -7/Zion | Found Prototype Device 3114 | -7/Zion | Identified Phasing AFG 3398 | -7/Zion | Found Prototype Special Weapon 3405 | -7/Zion | Found Prototype Special Weapon 3407 | -7/Zion | Found Prototype Special Weapon 3411 | -7/Zion | Found Prototype Special Weapon 3910 | -7/Zion | Learned Factory stockpile data 5049 | -7/Zion | Met Imprinter 5059 | -7/Zion | Identified RU-N14's Throwing Claymores (x4) 5071 | -7/Zion | Attacked by Zionites 5357 | -7/Zion | Build established: Mutant 5884 | -7/Zion | Core integrity fell below 50% 6174 | -7/Zion | Lost 3 parts (2n1w) 6261 | -7/Zion | Core integrity fell below 20% 6272 | -7/Zion | Released all parts (2) 6273 | -7/Zion | Destroyed by J8-ULY(z) with Makeshift Spear Last Messages --------------- Deuterium Engine. 06262_ A8-SKQ(z) overheating. 06262_ 0B-Z3A(z) overheating. 06263_ A8-SKQ(z) overheating. 06264_ Mak. Light Armor Plating destroyed. 06264_ A8-SKQ(z) overheating. 06265_ 0B-Z3A(z) heat short circuits Mak. Laser. 06265_ A8-SKQ(z) overheating. 06265_ 0B-Z3A(z) overheating. 06266_ Mak. Axe severed. 06266_ Hvy. Ion Engine destroyed. 06266_ A8-SKQ(z) overheating. 06266_ 0B-Z3A(z) overheating. 06267_ A8-SKQ(z) overheating. 06269_ Mak. Light Armor Plating destroyed. 06271_ A8-SKQ(z) heat damages core (-3). 06272_ A8-SKQ(z) overheating. 06272_ Released Lrg. Storage Unit. 06272_ Released RU-N14's Throwing Claymores. 06273_ A8-SKQ(z) overheating. Map ----- +----------------------------------------------------+ | ??????????????????##"" """"" ""#?###?#"""" | | ??????????????????#""" """"" ""#?????###""" | | ??????????????????#""" """"" ""##???????###" | | ??????????????????###"" """"" """??????????#" | | ???????????????????#""" """##" ""##?????????#" | | ????????????????#####"" ""###" ""????????????# | | ????????????????#""#"" "##?"" ""????????????? | | ????????????????##""" """#"" """???????????? | | ??????????????###"" """#"" """???????????? | | ??????????????#""" """#"" ""#???????????? | | ??????????????##"" ""##" ""##??????????? | | ???????????????#""" """" ""##?????????? | | ??????????????#"#"" "" """##????????? | | ??????????????#""" """#????????? | | ??????????????#"" "" """#????????? | | ??????????????#"" """" ""##???????? | | ??????????????#"""""#"" """#??????? | | ??????????????#"#"#"#""" "" """??????? | | ??????????????#####"##""" "" """""#??????? | | ?????????????????????#""" """" """""#??????? | | ?????????????????????## "" ""#???????? | | ????????????????????## " " "#???????? | | ????????????????????# z = """#???????? | | ?????????????????#### """####?##### | | ????#####???######""# [!/ "####"###"##" | | ???##"""##### ## "" @z!=z "####"#"""""" | | ???#""""##" # %= zz/ """#""""""" " | | #####"""""" =/ """"" | | " # " = """" = | | " # !! !! "" | | # ! | | ## | | | | # "#""""" | | # " "" """"""""""" | | ###" = *#" ! """" """"""""#""" | | #""" #"" ##"#""""""""####""" | | " #"#" ###"" ###"#"""###??##" | | " #"" "#"" #"#"#####????##" | | ###"" * #""" #""#"#"#?###??#"" | | ###""#[ [ ! #""" """""""###"##?#" | | "#### !#"###"" "" """"#""###" | | ! #"#?#""" """"""#"" | | ###?#"""" """"" | | #???#"""" """ | | #### #???##" "" | | #??######????#"" """"" "" | | !######???????##"" """"""""" """ "" | | """"""????????#"""""""#####"" ""#"" """"""""" | | "######???????####"""##???#"" """#"""""""#"""## | +----------------------------------------------------+ Best States ------------- Heat Dissipation 28 Energy Generation 14 Energy Capacity 280 Matter Stores 300 Matter Capacity 300 Sight Range 16 Terrain Scan Density 10 Armor Coverage 200 Power Shielding 33 Evasion (%) 55 Targeting Accuracy 5 Recoil Reduction 3 Item Schematics ----------------- None Robot Schematics ------------------ None Fabricated ------------ Nothing Repaired ---------- Nothing Studied --------- None Alien Tech Used ----------------- None Achievements -------------- None Challenges ------------ None Game ------ Seed SwarmJunkShovel Manual? 0 Play Time 00:25:55 Cumulative 481.5 hours Start 2025.10.24 @ 17:14:45 End 2025.10.24 @ 18:09:08 Sessions 1 Manual Loads 0 Difficulty Rogue Special Mode None Game No. 812 Rogue 657 Adventurer 148 Explorer 7 Win Type - Total 24 Types 19/1/3/1/0/0/0/0/0/0 Lore% 69 Gallery% 76 Achievement% 54 Wizard Run 0 Options --------- Layout 1 ASCII 0 Keyboard 0 Movement Numpad Keybinds 0 Fullscreen 2 Font 24/Smallcaps Map View 50x35 Zoom Use 0% Tactical HUD 1 Map Filters NONE Filters NONE Steam 1 RUN: 4ce7b03f-f8ad-4d85-ab56-2a7780d44215